Cogmind - Beta 14 @@@ ROGUE MODE // 2024.12.15 @ 00:35:46 Player: thrax Result: Destroyed by CW-DL5(R) with Subdweller Laser Performance ------------- Evolutions (0) 0 Regions Visited (2) 400 Robots Destroyed (18) 90 Value Destroyed (559) 559 Prototype IDs (2) 40 Alien Tech Used (0) 0 Bonus (0) 0 TOTAL SCORE: 1089 Bonus ------- None Cogmind --------- Core Integrity 0/250 Matter 300/300 Energy 123/125 System Corruption 0% Temperature Cool (7) Movement Treading (160) Location -10/Subcaves Parts ------- > --- POWER (1) -------- Light Ion Engine > --- PROPULSION (2) --- Improved Treads > --- UTILITY (2) ------ Small Storage Unit Signal Interpreter > --- WEAPON (2) ------- Subdweller Laser Light Cannon > --- INVENTORY (8) ---- Ion Engine Aluminum Leg Salvage Targeting Computer Hardened Light Armor Plating Subdweller Shrapnel Launcher Peak State ------------ > --- POWER ------------ Light Ion Engine > --- PROPULSION ------- Improved Treads Improved Treads > --- UTILITY ---------- Small Storage Unit Hardened Light Armor Plating > --- WEAPON ----------- Light EM Pulse Cannon Particle Cannon > --- INVENTORY -------- Ion Engine Improved Treads Improved Treads Salvage Targeting Computer Salvage Targeting Computer Hardened Light Armor Plating Hardened Light Armor Plating Assault Rifle [Rating: 13] Favorites ----------- Power Ion Engine Engine Ion Engine Propulsion Improved Treads Treads Improved Treads Leg Aluminum Leg Utility Small Storage Unit Storage Small Storage Unit Processor Signal Interpreter Protection Hardened Light Armor Plating Weapon Light Cannon Energy Gun Subdweller Laser Energy Cannon Particle Cannon Ballistic Gun Subdweller Machine Gun Ballistic Cannon Light Cannon Build | -11 -10 -10 ------- Run | Yrd Mat Sub Slots Evolved . | . . . Power . | . . . Propulsion . | . . . Utility . | . . . Weapon . | . . . Parts Attached 31 | 6 21 4 Power 6 | 1 4 1 Engine 6 | 1 4 1 Core . | . . . Reactor . | . . . Propulsion 7 | 2 5 . Treads 5 | . 5 . Leg 2 | 2 . . Wheel . | . . . Hover . | . . . Flight . | . . . Utility 6 | 1 5 . Device . | . . . Storage 3 | 1 2 . Processor 1 | . 1 . Hackware . | . . . Protection 2 | . 2 . Artifact . | . . . Weapon 12 | 2 7 3 Energy Gun 2 | 1 . 1 Energy Cannon 3 | . 3 . Ballistic Gun 2 | 1 . 1 Ballistic Cannon 5 | . 4 1 Launcher . | . . . Special Weapon . | . . . Impact Weapon . | . . . Slashing Weapon . | . . . Piercing Weapon . | . . . Special Melee Weapon . | . . . Unidentified Prototypes . | . . . Parts Lost 2 | . . 2 Power 1 | . . 1 Propulsion 1 | . . 1 Utility . | . . . Weapon . | . . . Highest Loss Streak 1 | . . 1 To Critical Strikes . | . . . Average Slot Usage (%) 96 | . 99 93 Engine 13 | . 14 13 Treads 24 | . 26 22 Storage 14 | . 14 14 Processor 9 | . 5 14 Protection 4 | . 8 . Energy Gun 5 | . 1 10 Energy Cannon 3 | . 7 . Ballistic Gun 7 | . 1 12 Ballistic Cannon 11 | . 17 5 Peak Build Rating 13 | 6 13 11 Average Rating 9 | 4 9 10 On Entrance 4 | . 6 8 Naked Turns . | . . . Heaviest Build 23 | 11 23 18 Greatest Support 46 | 20 46 43 Greatest Overweight (x) . | . . . Average Overweight (x) . | . . . Largest Inventory Capacity 25 | 8 25 8 Average Capacity 7 | 6 8 8 Most Carried 8 | 3 8 8 Average Carried 6 | 1 5 6 Final Capacity 8 | 8 8 8 Final Carried 6 | 3 6 5 Class Distribution -------------------- 100% | Mutant Dominant Class ---------------- Mutant | -10/Materials Mutant | -10/Subcaves Resources | -11 -10 -10 ----------- Run | Yrd Mat Sub Matter Collected 705 | 256 335 114 Remotely . | . . . Salvage Created 466 | . 390 76 Parts 34 | . 29 5 Haulers Intercepted . | . . . Recyclers Shooed . | . . . Parts Field Recycled . | . . . Retrieved Matter . | . . . Parts Self-Destructed . | . . . Prevented . | . . . Kills | -11 -10 -10 ------- Run | Yrd Mat Sub Combat Hostiles Destroyed 13 | . 10 3 Guns 3 | . . 3 Cannons 10 | . 10 . Classes Destroyed 6 | . 5 1 Builder 1 | . 1 . Tunneler 1 | . 1 . Operator 1 | . 1 . Watcher 2 | . 2 . Grunt 10 | . 10 . Subdweller 3 | . . 3 Best Kill Streak 3 | . 3 2 Combat Bots Only 3 | . 3 2 Max Kills in Single Turn 1 | . 1 1 Gunslinging . | . . . Exploded . | . . . Melee . | . . . Uniques/NPCs Destroyed . | . . . Combat | -11 -10 -10 -------- Run | Yrd Mat Sub Hostile Shots Fired 91 | . 73 18 Missed 25 | . 21 4 Damage Taken 1196 | . 649 547 Core 253 | . 79 174 Absorbed by Shields . | . . . Core Remaining (%) 100 | 100 . . Volleys Fired 55 | . 37 18 Largest 2 | . 2 2 Hottest 136 | . 136 90 Shots Fired 108 | . 72 36 Gun 40 | . 4 36 Cannon 68 | . 68 . Launcher . | . . . Special . | . . . Kinetic 58 | . 40 18 Thermal 50 | . 32 18 Explosive . | . . . Electromagnetic . | . . . Robot Hit Streak 13 | . 11 13 Robot Miss Streak 2 | . 2 2 Penetration Max . | . . . Secondary Targets 1 | . . 1 Max Gunslinging Chain 1 | . . 1 Shots Hit Robots 61 | . 44 17 Core Hits 23 | . 17 6 Critical Kills . | . . . Critical Parts Destroyed . | . . . Critical Strikes 2 | . 2 . Blast 2 | . 2 . Melee Attacks . | . . . Impact . | . . . Slashing . | . . . Piercing . | . . . Sneak Attacks . | . . . Combat Hostiles . | . . . Follow-up Attacks . | . . . Damage Inflicted 1215 | . 849 366 Guns 402 | . 36 366 Cannons 807 | . 807 . Explosions . | . . . Melee . | . . . Ramming 6 | . 6 . Kinetic 661 | . 462 199 Thermal 548 | . 381 167 Explosive . | . . . Electromagnetic . | . . . Impact . | . . . Slashing . | . . . Piercing . | . . . Highest Corruption . | . . . Average Corruption . | . . . Corruption Purged . | . . . Corruption Blocked . | . . . Overload Shots . | . . . Overflow Damage . | . . . Projectiles . | . . . Explosions . | . . . Melee . | . . . Knockbacks 5 | . 5 . Impact . | . . . Kinetic 5 | . 5 . Secondary . | . . . Self-Inflicted Damage . | . . . Shots . | . . . Rammed 2 | . 2 . Targets Rammed 4 | . 4 . Kicked . | . . . Crushed 2 | . 2 . Highest Temperature 557 | . 557 . Average Temperature 185 | . 185 . Received Heat Transfer 483 | . 381 102 Effects 9 | . 9 . Shutdowns 2 | . 2 . Energy Bleed 1 | . 1 . Interference 2 | . 2 . Matter Decay 2 | . 2 . Damage (minor) 2 | . 2 . Siege Activations . | . . . Robots Corrupted . | . . . Combat Hostiles . | . . . Parts Fried . | . . . Impact Corruptions . | . . . Robots Melted . | . . . Combat Hostiles . | . . . Parts Melted 1 | . 1 . Heat Transferred 891 | . 691 200 Parts Sabotaged . | . . . Parts Stolen . | . . . Parts Stripped . | . . . Power Chain Reactions . | . . . Alert | -11 -10 -10 ------- Run | Yrd Mat Sub Peak Influence 157 | . 157 . Initial . | . . . Average 72 | . 76 . Maximum Alert Level . | . . . Low Security (%) 100 | 100 100 . Level 1 . | . . . Level 2 . | . . . Level 3 . | . . . Level 4 . | . . . Level 5 . | . . . High Security . | . . . Max Security . | . . . Squads Dispatched 3 | . 3 . Investigation . | . . . Extermination . | . . . Reinforcement 3 | . 3 . Assault . | . . . Garrison . | . . . Intercept . | . . . Searches Triggered . | . . . Construction Impeded . | . . . Haulers Reinforced . | . . . Active Scanning Responses . | . . . Cargo Convoy Interrupts . | . . . Stealth | -11 -10 -10 --------- Run | Yrd Mat Sub Distress Signals . | . . . Communications Jammed . | . . . Distress Signals . | . . . Times Spotted 23 | . 19 4 Peak Tracking Total 4 | . 4 2 Tactical Retreats 3 | . 3 . Traps | -11 -10 -10 ------- Run | Yrd Mat Sub Traps Triggered . | . . . Indirectly . | . . . Trap Hack Attempts . | . . . Triggered . | . . . Disarmed . | . . . Reprogrammed . | . . . Reused . | . . . Traps Extracted . | . . . Installed . | . . . Triggered . | . . . Machines | -11 -10 -10 ---------- Run | Yrd Mat Sub Machines Disabled . | . . . Max in Single Turn . | . . . Machines Repaired . | . . . Machines Dismantled . | . . . Machines Sabotaged . | . . . Overloaded Fab Kills . | . . . Hacking | -11 -10 -10 --------- Run | Yrd Mat Sub Machines Accessed 3 | . 3 . Terminals 2 | . 2 . Fabricators . | . . . Repair Stations . | . . . Recycling Units 1 | . 1 . Scanalyzers . | . . . Garrison Access . | . . . Total Hacks 8 | . 8 . Successful 7 | . 7 . Failed 1 | . 1 . Catastrophic . | . . . Database Lockouts . | . . . Manual . | . . . Terminals 5 | . 5 . Fabricators . | . . . Repair Stations . | . . . Recycling Units 3 | . 3 . Scanalyzers . | . . . Garrison Access . | . . . Terminal Hacks 4 | . 4 . Prototype ID Bank 1 | . 1 . Reinforcement Status 1 | . 1 . Hauler Manifests 1 | . 1 . Zone Layout 1 | . 1 . Fabricator Hacks . | . . . Repair Station Hacks . | . . . Recycling Unit Hacks 3 | . 3 . Process 1 | . 1 . Report Inventory 1 | . 1 . Retrieve Matter 1 | . 1 . Scanalyzer . | . . . Garrison Access Hacks . | . . . Unauthorized Hacks . | . . . Terminals . | . . . Fabricators . | . . . Repair Stations . | . . . Recycling Units . | . . . Scanalyzers . | . . . Garrison Access . | . . . Data Cores Recovered . | . . . Used . | . . . Hacking Detections 1 | . 1 . Full Trace Events 1 | . 1 . Feedback Events . | . . . Feedback Blocked . | . . . Robot Schematics Acquired . | . . . Robots Built . | . . . Authchips . | . . . Time . | . . . Total Robot Build Rating . | . . . Part Schematics Acquired . | . . . Parts Built . | . . . Authchips . | . . . Time . | . . . Total Part Build Rating . | . . . Parts Repaired . | . . . Time . | . . . Parts Recycled . | . . . Recycled Matter 308 | . 308 . Retrieved Matter 330 | . 330 . Retrieved Components . | . . . Parts Scanalyzed . | . . . Part Schematics Acquired . | . . . Parts Damaged . | . . . Bothacking | -11 -10 -10 ------------ Run | Yrd Mat Sub Used RIF Installer . | . . . Robots Hacked . | . . . Non-combat . | . . . Combat . | . . . Robot Hacks Applied . | . . . Relay Couplers Released . | . . . Fabnet Peak Effective % . | . . . Robots Rewired . | . . . Allies Hacked . | . . . Hacks Repelled . | . . . Allies | -11 -10 -10 -------- Run | Yrd Mat Sub Total Allies . | . . . Largest Group . | . . . Highest-Rated Group . | . . . Highest-Rated Ally . | . . . Total Orders . | . . . Ally Attacks . | . . . Total Damage . | . . . Kills . | . . . Allies Corrupted . | . . . Allies Melted . | . . . Intel | -11 -10 -10 ------- Run | Yrd Mat Sub Robot Analysis Total . | . . . Derelict Logs Recovered 1 | . . 1 Drone Launches . | . . . Drone Recoveries . | . . . Exploration | -11 -10 -10 ------------- Run | Yrd Mat Sub Turns Passed 2051 | 54 995 1002 Spaces Moved 1125 | 40 498 587 Core 7 | 7 . . Treads 1060 | . 473 587 Legs 58 | 33 25 . Wheels . | . . . Hover . | . . . Flight . | . . . Fastest Speed 50 | 50 120 160 Average Speed 157 | 107 157 160 Slowest Speed 160 | 120 160 160 Overloaded Moves . | . . . Propulsion Burnouts . | . . . Robots Hopped . | . . . Cave-ins Triggered . | . . . Exploration Rate (%) 30 | 4 56 30 Regions Visited 2 Branch Regions 1 Pre-discovered Areas . | . . . Known Exits Taken 1 | . 1 . Unknown Exits Taken 1 | 1 . . Scrap Searched 1 | . . 1 Spaces Dug . | . . . Terrain Destroyed . | . . . Melee . | . . . Projectile . | . . . AOE . | . . . Terrain Rammed . | . . . Walls Destroyed . | . . . Machines Disabled . | . . . Actions | -11 -10 -10 --------- Run | Yrd Mat Sub Total 1298 | 48 634 616 Wait 36 | . 36 . Move 1123 | 39 497 587 Hop . | . . . Pick Up 23 | 3 17 3 Fast Attach 11 | 6 5 . Attach 4 | . 1 3 Detach 2 | . 1 1 Swap 16 | . 15 1 Drop 24 | . 21 3 Fire 55 | . 37 18 Melee . | . . . Ram . | . . . Kick . | . . . Crush 4 | . 4 . Escape Stasis . | . . . Rewire . | . . . Trap . | . . . Miscellaneous . | . . . Route ------- -11/Scrapyard -10/Materials (discovered 2 exits: *Mat / *Sub) -10/Subcaves (discovered 1 exit: *Mat) History --------- Turn | Location | Event 2 | -11/Scrapyard | Met Revision 17 8 | -11/Scrapyard | Discovered new exit (range 15) 55 | -11/Scrapyard | Entered Materials 300 | -10/Materials | Build established: Mutant 664 | -10/Materials | Discovered new exit (range 16) 702 | -10/Materials | Identified exit to Materials 1033 | -10/Materials | Discovered new exit (range 8) 1048 | -10/Materials | Identified exit to Subcaves 1050 | -10/Materials | Entered Subcaves 1211 | -10/Subcaves | Shifting Twisted Machinery released Piercing Trap 1590 | -10/Subcaves | Discovered new exit (range 8) 1619 | -10/Subcaves | Identified exit to Materials 1961 | -10/Subcaves | Core integrity fell below 50% 1971 | -10/Subcaves | Core integrity fell below 20% 2052 | -10/Subcaves | Destroyed by CW-DL5(R) with Subdweller Laser Last Messages --------------- 01343_ Subatomizers dissect the Lgt. Cannon. 01353_ Acquired 10 matter. 01382_ Subatomizers dissect the Lgt. Cannon. 01480_ Subatomizers dissect the Lgt. Cannon, destroying it. 01507_ I3-F9D(u) tweaks Twisted Machinery. 01590_ EXIT=FOUND 01603_ I3-F9D(u) builds Twisted Machinery. 01619_ EXIT=IDENTIFIED: MATERIALS 01662_ 9U-TQ1(R) destroyed. 01662_ Switching to secondary target: 1B-P4Q(R). 01666_ Lgt. Treads destroyed. 01668_ 1B-P4Q(R) destroyed. 01672_ Subatomizers dissect the Sub. Shrapnel Launcher. 01696_ Acquired 13 matter. 01722_ Subatomizers dissect the Sub. Shrapnel Launcher. 01968_ Ion Engine destroyed. 01977_ IW-AS8(R) destroyed. 01985_ Acquired 33 matter. 01993_ Dropped Sub. Machine Gun. 02005_ Subatomizers dissect the Sub. Machine Gun, destroying it. Map ----- +----------------------------------------------------+ | ?? ??# ???????????????????## #### #??????? | | ?? ## ?????????????????????# [ #??????? | | ??# ?????????????????????## !& ##??????? | | ?? $ #???###????????????????### &%& ###???????? | | ### #??# #??????????????????### ## #?????????? | | # ##? #????????????????????#### #?????????? | | # ?? #???????????????????##??## #?????????? | | # #### #????????????????????# #### ##????????? | | # ## #?????????????????????# ##???????? | | # #?????????????????????# #???????? | | ## #?????????????????????# #???????? | | ## #?????????????????????## ##??????? | | # ##?????????????????###### ##?????? | | #############??????# ## #?????? | | ##????## ## #?????? | | #????# ## #?????? | | #????# ### #?????? | | ### ####R ###????## #?# #?????? | | ##### #??## ######### ### ### ##?????? | | ##### ## #???# ## ##?## #??????? | | ??### ##??# #???# #??????? | | ### #??# ## #???# #??????? | | ###?###### ##??# #??????? | | ### ##? ##??## ##?## ##??????? | | ###??# ## ##?# #### #???????? | | ?????# ### @ ##??????? | | ?????# ## ### #??????? | | ?????##### ##### ## ## #??????? | | ???????## ### ###???## ## ######??????? | | ??##??## ##?? ##??????## #???????????? | | ?## #?# ##????#????????## #??????????? | | ## ## ##??????? ?????## ##??????????? | | # #??????# ??????## ## #?????????? | | # #?????# ##?????## ????????? | | ## ##???### ##????## #???????? | | ?# ##????? #?????##" ## # #??????? | | ?# #??????? #??????######?#### ##???## | | ## #???????? #??#####?########?# ###?# | | # ##?????????# #?## ### # ## ### " #### | | ##?????????# #?# ## " ## # | | ##???????## #?# ## """ ##### | | #??????## ### "" ###???### | | #####?## #####???????? | | ## #?# ##??????????? | | #?# " #??????????? | | ## #### "" #?????????? | | ?### ## ### & #????????? | | ??# ### ## #????????? | | ?##"] ### #????????? | | ## ] " ### #????????? | +----------------------------------------------------+ Best States ------------- Heat Dissipation 25 Energy Generation 10 Energy Capacity 250 Matter Stores 300 Matter Capacity 300 Sight Range 16 Terrain Scan Density 10 Armor Coverage 150 Evasion (%) 55 Recoil Reduction 2 Item Schematics ----------------- None Robot Schematics ------------------ None Fabricated ------------ Nothing Alien Tech Used ----------------- None Achievements -------------- None Challenges ------------ None Game ------ Seed EfficiencyInsulationJammer Manual? 0 Play Time 00:23:33 Cumulative 19.6 hours Start 2024.12.15 @ 00:12:09 End 2024.12.15 @ 00:35:46 Sessions 1 Manual Loads 0 Difficulty Rogue Special Mode None Game No. 22 Rogue 16 Adventurer 6 Explorer 0 Win Type - Total 0 Types 0/0/0/0/0/0/0/0/0 Lore% 14 Gallery% 22 Achievement% 25 Wizard Run 0 Options --------- Layout 0 ASCII 0 Keyboard 1 Movement Numpad Keybinds 0 Fullscreen 2 Font 36/Smallcaps Map View 76x50 Zoom Use 0% Tactical HUD 1 Map Filters NONE Filters NONE Steam 1 RUN: 7334626f-1051-4fdd-af9f-67db57ecefca